[Event "Rapid Tournament (RAP)"]
[Site "Biel, Switzerland"]
[Date "2026.07.12"]
[Round "3.4"]
[White "Haimovich, Tal"]
[Black "Ganguly, Surya Shekhar"]
[Result "0-1"]
[TimeControl "15 + 5"]
[WhiteTitle "-"]
[BlackTitle "-"]
[WhiteFideId "2801698"]
[BlackFideId "5002150"]
[WhiteElo "2245"]
[BlackElo "2545"]

1. Nf3 {[%clk 00:15:08]} d5 {[%clk 00:15:07]} {[%emt 00:00:03]} 2. d4 {[%clk
00:15:04]} {[%emt 00:00:09]} Nf6 {[%clk 00:15:09]} {[%emt 00:00:02]} 3. c4
{[%clk 00:15:07]} {[%emt 00:00:02]} e6 {[%clk 00:15:10]} {[%emt 00:00:03]} 4.
Nc3 {[%clk 00:15:07]} {[%emt 00:00:06]} Be7 {[%clk 00:14:48]} {[%emt 00:00:26]}
5. Bg5 {[%clk 00:14:54]} {[%emt 00:00:19]} h6 {[%clk 00:14:43]} {[%emt
00:00:10]} 6. Bh4 {[%clk 00:14:54]} {[%emt 00:00:05]} O-O {[%clk 00:14:45]}
{[%emt 00:00:02]} 7. e3 {[%clk 00:14:55]} {[%emt 00:00:04]} Nbd7 {[%clk
00:14:48]} {[%emt 00:00:02]} 8. cxd5 {[%clk 00:14:09]} {[%emt 00:00:51]} Nxd5
{[%clk 00:14:51]} {[%emt 00:00:02]} 9. Bxe7 {[%clk 00:13:59]} {[%emt 00:00:15]}
Nxe7 {[%clk 00:14:34]} {[%emt 00:00:22]} 10. Bd3 {[%clk 00:13:35]} {[%emt
00:00:29]} c5 {[%clk 00:14:27]} {[%emt 00:00:12]} 11. O-O {[%clk 00:13:18]}
{[%emt 00:00:21]} b6 {[%clk 00:13:08]} {[%emt 00:01:24]} 12. Re1 {[%clk
00:11:55]} {[%emt 00:01:28]} cxd4 {[%clk 00:12:33]} {[%emt 00:00:41]} 13. exd4
{[%clk 00:11:45]} {[%emt 00:00:15]} Bb7 {[%clk 00:12:27]} {[%emt 00:00:11]} 14.
Qe2 {[%clk 00:10:19]} {[%emt 00:01:30]} Nf6 {[%clk 00:12:23]} {[%emt 00:00:08]}
15. Rad1 {[%clk 00:10:21]} {[%emt 00:00:03]} Ned5 {[%clk 00:11:56]} {[%emt
00:00:32]} 16. Bb1 {[%clk 00:10:06]} {[%emt 00:00:20]} Rc8 {[%clk 00:11:23]}
{[%emt 00:00:38]} 17. Ne4 {[%clk 00:07:56]} {[%emt 00:02:16]} Nf4 {[%clk
00:10:52]} {[%emt 00:00:36]} 18. Qd2 {[%clk 00:07:38]} {[%emt 00:00:23]} Bxe4
{[%clk 00:09:53]} {[%emt 00:01:03]} 19. Bxe4 {[%clk 00:07:41]} {[%emt
00:00:02]} Nxe4 {[%clk 00:09:56]} {[%emt 00:00:02]} 20. Qxf4 {[%clk 00:07:43]}
{[%emt 00:00:03]} Nf6 {[%clk 00:09:57]} {[%emt 00:00:04]} 21. Rc1 {[%clk
00:07:38]} {[%emt 00:00:11]} Qd5 {[%clk 00:09:47]} {[%emt 00:00:15]} 22. b3
{[%clk 00:07:23]} {[%emt 00:00:21]} Qa5 {[%clk 00:09:25]} {[%emt 00:00:26]} 23.
Re2 {[%clk 00:07:23]} {[%emt 00:00:04]} Nd5 {[%clk 00:09:02]} {[%emt 00:00:28]}
0-1

[Event "Rapid Tournament (RAP)"]
[Site "Biel, Switzerland"]
[Date "2026.07.12"]
[Round "3.5"]
[White "Sasikiran, Krishnan"]
[Black "Frey, Fabian"]
[Result "1-0"]
[TimeControl "15 + 5"]
[WhiteTitle "-"]
[BlackTitle "-"]
[WhiteFideId "5004985"]
[BlackFideId "1336487"]
[WhiteElo "2520"]
[BlackElo "2207"]

1. e4 {[%clk 00:15:07]} {[%emt 00:00:04]} e5 {[%clk 00:14:38]} {[%emt
00:00:26]} 2. Nf3 {[%clk 00:15:09]} {[%emt 00:00:08]} Nc6 {[%clk 00:14:41]}
{[%emt 00:00:02]} 3. Bb5 {[%clk 00:15:12]} {[%emt 00:00:03]} Nge7 {[%clk
00:14:41]} {[%emt 00:00:04]} 4. O-O {[%clk 00:13:38]} {[%emt 00:01:38]} g6
{[%clk 00:14:32]} {[%emt 00:00:15]} 5. c3 {[%clk 00:13:24]} {[%emt 00:00:20]}
a6 {[%clk 00:14:23]} {[%emt 00:00:14]} 6. Ba4 {[%clk 00:13:03]} {[%emt
00:00:25]} Bg7 {[%clk 00:14:26]} {[%emt 00:00:02]} 7. d4 {[%clk 00:12:38]}
{[%emt 00:00:30]} exd4 {[%clk 00:14:29]} {[%emt 00:00:02]} 8. cxd4 {[%clk
00:12:41]} {[%emt 00:00:02]} b5 {[%clk 00:14:33]} {[%emt 00:00:01]} 9. Bb3
{[%clk 00:12:33]} {[%emt 00:00:13]} O-O {[%clk 00:14:24]} {[%emt 00:00:13]} 10.
a4 {[%clk 00:12:17]} {[%emt 00:00:21]} Bb7 {[%clk 00:13:40]} {[%emt 00:00:49]}
11. Re1 {[%clk 00:11:49]} {[%emt 00:00:33]} d6 {[%clk 00:13:32]} {[%emt
00:00:12]} 12. h4 {[%clk 00:09:05]} {[%emt 00:02:48]} Na5 {[%clk 00:12:45]}
{[%emt 00:00:53]} 13. Bc2 {[%clk 00:08:28]} {[%emt 00:00:42]} c5 {[%clk
00:12:39]} {[%emt 00:00:11]} 14. h5 {[%clk 00:07:36]} {[%emt 00:00:57]} Nac6
{[%clk 00:11:59]} {[%emt 00:00:44]} 15. Be3 {[%clk 00:06:54]} {[%emt 00:00:47]}
cxd4 {[%clk 00:10:04]} {[%emt 00:02:01]} 16. Nxd4 {[%clk 00:06:43]} {[%emt
00:00:16]} Rc8 {[%clk 00:09:43]} {[%emt 00:00:26]} 17. h6 {[%clk 00:05:38]}
{[%emt 00:01:10]} Bh8 {[%clk 00:09:34]} {[%emt 00:00:14]} 18. axb5 {[%clk
00:04:55]} {[%emt 00:00:48]} axb5 {[%clk 00:09:16]} {[%emt 00:00:24]} 19. Nc3
{[%clk 00:03:57]} {[%emt 00:01:02]} b4 {[%clk 00:08:56]} {[%emt 00:00:25]} 20.
Ncb5 {[%clk 00:03:50]} {[%emt 00:00:12]} d5 {[%clk 00:08:20]} {[%emt 00:00:41]}
21. Bb3 {[%clk 00:01:33]} {[%emt 00:02:22]} Na5 {[%clk 00:05:48]} {[%emt
00:02:36]} 22. Ba2 {[%clk 00:00:40]} {[%emt 00:00:59]} Nc4 {[%clk 00:05:46]}
{[%emt 00:00:07]} 23. Bg5 {[%clk 00:00:38]} {[%emt 00:00:07]} Re8 {[%clk
00:05:16]} {[%emt 00:00:35]} 24. Bxc4 {[%clk 00:00:21]} {[%emt 00:00:22]} Rxc4
{[%clk 00:05:06]} {[%emt 00:00:14]} 25. e5 {[%clk 00:00:20]} {[%emt 00:00:06]}
Qb6 {[%clk 00:04:17]} {[%emt 00:00:54]} 26. b3 {[%clk 00:00:21]} {[%emt
00:00:05]} Rcc8 {[%clk 00:02:06]} {[%emt 00:02:16]} 27. Nd6 {[%clk 00:00:25]}
{[%emt 00:00:01]} Nc6 {[%clk 00:02:06]} {[%emt 00:00:05]} 28. Nxc6 {[%clk
00:00:16]} {[%emt 00:00:14]} Bxc6 {[%clk 00:02:04]} {[%emt 00:00:07]} 29. Nxc8
{[%clk 00:00:14]} {[%emt 00:00:07]} Rxc8 {[%clk 00:02:06]} {[%emt 00:00:02]} 30.
Bf6 {[%clk 00:00:16]} {[%emt 00:00:03]} Bxf6 {[%clk 00:01:53]} {[%emt
00:00:18]} 31. exf6 {[%clk 00:00:20]} Bd7 {[%clk 00:01:57]} {[%emt 00:00:01]}
32. Rc1 {[%clk 00:00:14]} {[%emt 00:00:11]} Rd8 {[%clk 00:01:43]} {[%emt
00:00:18]} 33. Qxd5 {[%clk 00:00:13]} {[%emt 00:00:07]} Be6 {[%clk 00:01:47]}
{[%emt 00:00:01]} 34. Qc5 {[%clk 00:00:08]} {[%emt 00:00:09]} Qb8 {[%clk
00:01:36]} {[%emt 00:00:16]} 35. Qe7 {[%clk 00:00:11]} {[%emt 00:00:02]} Re8
{[%clk 00:01:22]} {[%emt 00:00:19]} 36. Rxe6 {[%clk 00:00:14]} {[%emt
00:00:03]} Rxe7 {[%clk 00:01:21]} {[%emt 00:00:06]} 37. Rxe7 {[%clk 00:00:18]}
{[%emt 00:00:01]} Qd8 {[%clk 00:01:15]} {[%emt 00:00:11]} 38. Rec7 {[%clk
00:00:21]} {[%emt 00:00:02]} 1-0

[Event "Rapid Tournament (RAP)"]
[Site "Biel, Switzerland"]
[Date "2026.07.12"]
[Round "3.6"]
[White "Manko, Mariia"]
[Black "Alexakis, Dimitris"]
[Result "0-1"]
[TimeControl "15 + 5"]
[WhiteTitle "-"]
[BlackTitle "-"]
[WhiteFideId "14199220"]
[BlackFideId "4277023"]
[WhiteElo "2210"]
[BlackElo "2518"]

1. d4 {[%clk 00:15:08]} Nf6 {[%clk 00:15:08]} {[%emt 00:00:02]} 2. c4 {[%clk
00:15:12]} {[%emt 00:00:01]} e6 {[%clk 00:15:12]} {[%emt 00:00:03]} 3. g3
{[%clk 00:15:16]} Bb4+ {[%clk 00:15:13]} {[%emt 00:00:04]} 4. Bd2 {[%clk
00:15:20]} {[%emt 00:00:01]} a5 {[%clk 00:15:17]} {[%emt 00:00:02]} 5. Bg2
{[%clk 00:15:23]} d6 {[%clk 00:15:20]} {[%emt 00:00:02]} 6. Nf3 {[%clk
00:14:33]} {[%emt 00:00:55]} Nbd7 {[%clk 00:15:23]} {[%emt 00:00:02]} 7. Qc2
{[%clk 00:13:47]} {[%emt 00:00:51]} e5 {[%clk 00:15:21]} {[%emt 00:00:07]} 8.
O-O {[%clk 00:13:20]} {[%emt 00:00:32]} O-O {[%clk 00:15:15]} {[%emt 00:00:11]}
9. Nc3 {[%clk 00:12:50]} {[%emt 00:00:34]} Re8 {[%clk 00:15:04]} {[%emt
00:00:16]} 10. e4 {[%clk 00:12:28]} {[%emt 00:00:27]} exd4 {[%clk 00:13:59]}
{[%emt 00:01:10]} 11. Nxd4 {[%clk 00:12:31]} {[%emt 00:00:02]} Ne5 {[%clk
00:14:01]} {[%emt 00:00:03]} 12. b3 {[%clk 00:12:06]} {[%emt 00:00:30]} Bc5
{[%clk 00:11:58]} {[%emt 00:02:09]} 13. Nf5 {[%clk 00:12:00]} {[%emt 00:00:10]}
g6 {[%clk 00:11:42]} {[%emt 00:00:21]} 14. Ne3 {[%clk 00:11:34]} {[%emt
00:00:30]} h5 {[%clk 00:11:43]} {[%emt 00:00:05]} 15. h3 {[%clk 00:10:36]}
{[%emt 00:01:04]} h4 {[%clk 00:09:19]} {[%emt 00:02:29]} 16. g4 {[%clk
00:09:09]} {[%emt 00:01:31]} Nc6 {[%clk 00:06:54]} {[%emt 00:02:31]} 17. Ncd5
{[%clk 00:06:44]} {[%emt 00:02:30]} Nb4 {[%clk 00:05:23]} {[%emt 00:01:36]} 18.
Qc3 {[%clk 00:04:47]} {[%emt 00:02:02]} Nbxd5 {[%clk 00:04:49]} {[%emt
00:00:40]} 19. Nxd5 {[%clk 00:04:48]} {[%emt 00:00:03]} Nxd5 {[%clk 00:04:36]}
{[%emt 00:00:18]} 20. cxd5 {[%clk 00:04:34]} {[%emt 00:00:20]} Bd7 {[%clk
00:04:07]} {[%emt 00:00:34]} 21. Bc1 {[%clk 00:03:38]} {[%emt 00:01:01]} Bb4
{[%clk 00:03:12]} {[%emt 00:01:01]} 22. Qf3 {[%clk 00:03:41]} {[%emt 00:00:01]}
Bb5 {[%clk 00:02:18]} {[%emt 00:00:59]} 23. a3 {[%clk 00:02:57]} {[%emt
00:00:49]} Bxf1 {[%clk 00:02:06]} {[%emt 00:00:17]} 24. Kxf1 {[%clk 00:02:58]}
{[%emt 00:00:03]} Bc5 {[%clk 00:01:58]} {[%emt 00:00:13]} 25. Bb2 {[%clk
00:03:02]} {[%emt 00:00:01]} Re5 {[%clk 00:01:35]} {[%emt 00:00:28]} 26. Rc1
{[%clk 00:02:12]} {[%emt 00:00:55]} Bb6 {[%clk 00:01:38]} {[%emt 00:00:02]} 27.
Qe2 {[%clk 00:01:25]} {[%emt 00:00:53]} Qf6 {[%clk 00:01:13]} {[%emt 00:00:30]}
28. Rc3 {[%clk 00:01:15]} {[%emt 00:00:15]} Rae8 {[%clk 00:01:05]} {[%emt
00:00:13]} 29. Rf3 {[%clk 00:00:38]} {[%emt 00:00:42]} Qg5 {[%clk 00:00:56]}
{[%emt 00:00:14]} 30. Rd3 {[%clk 00:00:14]} {[%emt 00:00:29]} Qf4 {[%clk
00:00:37]} {[%emt 00:00:23]} 31. Kg1 {[%clk 00:00:06]} {[%emt 00:00:13]} Rxe4
{[%clk 00:00:29]} {[%emt 00:00:13]} 32. Bxe4 {[%clk 00:00:09]} {[%emt
00:00:03]} Rxe4 {[%clk 00:00:31]} {[%emt 00:00:02]} 33. Qc2 {[%clk 00:00:07]}
{[%emt 00:00:06]} Re1+ {[%clk 00:00:22]} {[%emt 00:00:15]} 34. Kg2 {[%clk
00:00:12]} Qe4+ {[%clk 00:00:20]} {[%emt 00:00:07]} 35. f3 {[%clk 00:00:06]}
{[%emt 00:00:11]} Rg1+ {[%clk 00:00:20]} {[%emt 00:00:04]} 36. Kh2 {[%clk
00:00:08]} {[%emt 00:00:03]} Qf4# {[%clk 00:00:24]} {[%emt 00:00:01]} 0-1

[Event "Rapid Tournament (RAP)"]
[Site "Biel, Switzerland"]
[Date "2026.07.12"]
[Round "3.7"]
[White "Aronyak, Ghosh"]
[Black "Kukushkin, Ivan"]
[Result "1/2-1/2"]
[TimeControl "15 + 5"]
[WhiteTitle "-"]
[BlackTitle "-"]
[WhiteFideId "25072846"]
[BlackFideId "11634103"]
[WhiteElo "2482"]
[BlackElo "2186"]

1. d4 {[%clk 00:15:08]} d5 {[%clk 00:15:09]} 2. c4 {[%clk 00:15:08]} {[%emt
00:00:06]} e6 {[%clk 00:15:12]} 3. Nc3 {[%clk 00:15:11]} {[%emt 00:00:02]} Nf6
{[%clk 00:15:15]} {[%emt 00:00:01]} 4. Bg5 {[%clk 00:14:47]} {[%emt 00:00:28]}
Be7 {[%clk 00:15:18]} {[%emt 00:00:03]} 5. e3 {[%clk 00:14:49]} {[%emt
00:00:03]} O-O {[%clk 00:15:18]} {[%emt 00:00:05]} 6. Nf3 {[%clk 00:14:51]}
{[%emt 00:00:03]} Nbd7 {[%clk 00:15:15]} {[%emt 00:00:08]} 7. Rc1 {[%clk
00:14:42]} {[%emt 00:00:14]} dxc4 {[%clk 00:15:07]} {[%emt 00:00:14]} 8. Bxc4
{[%clk 00:14:41]} {[%emt 00:00:05]} c5 {[%clk 00:15:11]} {[%emt 00:00:02]} 9.
O-O {[%clk 00:14:19]} {[%emt 00:00:26]} a6 {[%clk 00:15:10]} {[%emt 00:00:06]}
10. dxc5 {[%clk 00:14:19]} {[%emt 00:00:05]} Nxc5 {[%clk 00:15:11]} {[%emt
00:00:05]} 11. Be2 {[%clk 00:13:53]} {[%emt 00:00:31]} b5 {[%clk 00:14:42]}
{[%emt 00:00:34]} 12. Nd4 {[%clk 00:13:18]} {[%emt 00:00:40]} Bb7 {[%clk
00:14:33]} {[%emt 00:00:14]} 13. Bxf6 {[%clk 00:13:03]} {[%emt 00:00:19]} Bxf6
{[%clk 00:14:24]} {[%emt 00:00:15]} 14. Ncxb5 {[%clk 00:12:33]} {[%emt
00:00:35]} axb5 {[%clk 00:14:26]} {[%emt 00:00:03]} 15. Rxc5 {[%clk 00:12:36]}
{[%emt 00:00:02]} Rxa2 {[%emt 00:02:45]} 16. Rxb5 {[%clk 00:10:53]} Bxd4 {[%clk
00:12:38]} {[%emt 00:00:59]} 17. exd4 {[%clk 00:10:00]} {[%emt 00:00:58]} Ba6
{[%clk 00:11:49]} {[%emt 00:00:54]} 18. Re5 {[%clk 00:09:59]} {[%emt 00:00:06]}
Bxe2 {[%clk 00:11:39]} {[%emt 00:00:16]} 19. Rxe2 {[%clk 00:09:50]} {[%emt
00:00:13]} Qb6 {[%clk 00:11:35]} {[%emt 00:00:09]} 20. Qb1 {[%clk 00:09:19]}
{[%emt 00:00:36]} Ra4 {[%clk 00:11:19]} {[%emt 00:00:21]} 21. Rd1 {[%clk
00:08:54]} {[%emt 00:00:30]} Rxd4 {[%clk 00:11:10]} {[%emt 00:00:14]} 22. Rxd4
{[%clk 00:08:56]} {[%emt 00:00:04]} Qxd4 {[%clk 00:11:14]} 23. b4 {[%clk
00:08:59]} {[%emt 00:00:01]} Rb8 {[%clk 00:11:14]} {[%emt 00:00:05]} 24. Rb2
{[%clk 00:08:59]} {[%emt 00:00:05]} Rb5 {[%clk 00:10:53]} {[%emt 00:00:27]} 25.
h3 {[%clk 00:08:32]} {[%emt 00:00:32]} g6 {[%clk 00:10:52]} {[%emt 00:00:06]}
26. Rb3 {[%clk 00:08:20]} {[%emt 00:00:17]} Rf5 {[%clk 00:10:40]} {[%emt
00:00:16]} 27. Rf3 {[%clk 00:06:08]} {[%emt 00:02:17]} Rb5 {[%clk 00:09:38]}
{[%emt 00:01:08]} 28. Rb3 {[%clk 00:06:02]} {[%emt 00:00:10]} Rf5 {[%clk
00:09:38]} {[%emt 00:00:05]} 29. Rb2 {[%clk 00:04:03]} {[%emt 00:02:04]} Rb5
{[%clk 00:09:08]} {[%emt 00:00:35]} 30. Rb3 {[%clk 00:03:43]} {[%emt 00:00:26]}
Rf5 {[%clk 00:09:09]} {[%emt 00:00:04]} 31. Rb2 {[%clk 00:03:46]} {[%emt
00:00:02]} 1/2-1/2

[Event "Rapid Tournament (RAP)"]
[Site "Biel, Switzerland"]
[Date "2026.07.12"]
[Round "3.8"]
[White "Rohrer, Christophe"]
[Black "Ghosh, Diptayan"]
[Result "1/2-1/2"]
[TimeControl "15 + 5"]
[WhiteTitle "-"]
[BlackTitle "-"]
[WhiteFideId "1326546"]
[BlackFideId "5045207"]
[WhiteElo "2202"]
[BlackElo "2480"]

1. e4 {[%clk 00:15:07]} {[%emt 00:01:28]} e5 {[%clk 00:15:08]} {[%emt
00:00:02]} 2. Nf3 {[%clk 00:15:11]} {[%emt 00:00:01]} Nc6 {[%clk 00:15:11]}
{[%emt 00:00:04]} 3. Bb5 {[%clk 00:15:13]} a6 {[%clk 00:15:15]} {[%emt
00:00:02]} 4. Ba4 {[%clk 00:15:16]} {[%emt 00:00:01]} Bc5 {[%clk 00:15:18]}
{[%emt 00:00:03]} 5. Nc3 {[%clk 00:15:16]} {[%emt 00:00:04]} Ba7 {[%clk
00:15:14]} {[%emt 00:00:09]} 6. d3 {[%clk 00:15:18]} {[%emt 00:00:03]} Nge7
{[%clk 00:15:17]} {[%emt 00:00:03]} 7. Ng5 {[%clk 00:14:49]} {[%emt 00:00:34]}
h6 {[%clk 00:13:50]} {[%emt 00:01:32]} 8. Qh5 {[%clk 00:14:32]} {[%emt
00:00:21]} O-O {[%clk 00:10:41]} {[%emt 00:03:15]} 9. Nf3 {[%clk 00:14:30]}
{[%emt 00:00:06]} d5 {[%clk 00:09:00]} {[%emt 00:01:46]} 10. Bxc6 {[%clk
00:12:33]} {[%emt 00:02:02]} bxc6 {[%clk 00:05:05]} {[%emt 00:04:00]} 11. Nxe5
{[%clk 00:12:18]} {[%emt 00:00:20]} dxe4 {[%clk 00:04:28]} {[%emt 00:00:42]} 12.
dxe4 {[%clk 00:12:02]} {[%emt 00:00:21]} Qd6 {[%clk 00:03:47]} {[%emt
00:00:46]} 13. Nd3 {[%clk 00:11:24]} {[%emt 00:00:42]} Ng6 {[%clk 00:03:36]}
{[%emt 00:00:17]} 14. Be3 {[%clk 00:07:09]} {[%emt 00:04:21]} Bxe3 {[%clk
00:03:22]} {[%emt 00:00:18]} 15. fxe3 {[%clk 00:07:12]} {[%emt 00:00:02]} Qe7
{[%clk 00:02:43]} {[%emt 00:00:45]} 16. O-O {[%clk 00:06:47]} {[%emt 00:00:29]}
a5 {[%clk 00:02:44]} {[%emt 00:00:05]} 17. Qc5 {[%clk 00:05:42]} {[%emt
00:01:09]} Qxc5 {[%clk 00:02:46]} {[%emt 00:00:03]} 18. Nxc5 {[%clk 00:05:46]}
{[%emt 00:00:01]} Ne5 {[%clk 00:02:50]} 19. b3 {[%clk 00:05:24]} {[%emt
00:00:27]} Re8 {[%clk 00:02:54]} {[%emt 00:00:02]} 20. h3 {[%clk 00:04:46]}
{[%emt 00:00:43]} f6 {[%clk 00:02:58]} {[%emt 00:00:01]} 21. Rad1 {[%clk
00:04:36]} {[%emt 00:00:15]} Nf7 {[%clk 00:02:56]} {[%emt 00:00:06]} 22. Ne2
{[%clk 00:04:18]} {[%emt 00:00:23]} Nd6 {[%clk 00:02:57]} {[%emt 00:00:05]} 23.
Nc3 {[%clk 00:03:20]} {[%emt 00:01:03]} Re5 {[%clk 00:02:46]} {[%emt 00:00:16]}
24. Nd3 {[%clk 00:03:18]} {[%emt 00:00:06]} Re7 {[%clk 00:02:47]} {[%emt
00:00:03]} 25. Nc5 {[%clk 00:03:19]} {[%emt 00:00:05]} Re5 {[%clk 00:02:49]}
{[%emt 00:00:03]} 26. Nd3 {[%clk 00:03:22]} {[%emt 00:00:02]} Re7 {[%clk
00:02:49]} {[%emt 00:00:05]} 27. Nc5 {[%clk 00:03:26]} {[%emt 00:00:01]} Be6
{[%clk 00:02:17]} {[%emt 00:00:38]} 28. a4 {[%clk 00:02:52]} {[%emt 00:00:38]}
Bf7 {[%clk 00:02:20]} {[%emt 00:00:02]} 29. Rd4 {[%clk 00:02:50]} {[%emt
00:00:07]} Bg6 {[%clk 00:02:23]} {[%emt 00:00:02]} 30. Rfd1 {[%clk 00:02:07]}
{[%emt 00:00:48]} Rae8 {[%clk 00:01:37]} {[%emt 00:00:51]} 31. g4 {[%clk
00:01:41]} {[%emt 00:00:31]} h5 {[%clk 00:01:38]} {[%emt 00:00:03]} 32. Kf2
{[%clk 00:01:41]} {[%emt 00:00:05]} hxg4 {[%clk 00:01:33]} {[%emt 00:00:11]} 33.
hxg4 {[%clk 00:01:44]} {[%emt 00:00:01]} Bh7 {[%clk 00:00:53]} {[%emt
00:00:45]} 34. Kf3 {[%clk 00:01:39]} {[%emt 00:00:10]} Nf7 {[%clk 00:00:54]}
{[%emt 00:00:05]} 35. Kf4 {[%clk 00:01:25]} {[%emt 00:00:19]} Re5 {[%clk
00:00:51]} {[%emt 00:00:08]} 36. Nd3 {[%clk 00:01:17]} {[%emt 00:00:13]} Nd6
{[%clk 00:00:49]} {[%emt 00:00:07]} 37. Rxd6 {[%clk 00:01:02]} {[%emt
00:00:19]} Rxe4+ {[%clk 00:00:41]} {[%emt 00:00:13]} 38. Nxe4 {[%clk 00:00:58]}
{[%emt 00:00:10]} Rxe4+ {[%clk 00:00:45]} {[%emt 00:00:01]} 39. Kf3 {[%clk
00:00:58]} {[%emt 00:00:04]} cxd6 {[%clk 00:00:48]} {[%emt 00:00:02]} 40. Nf4
{[%clk 00:00:30]} {[%emt 00:00:33]} d5 {[%clk 00:00:46]} {[%emt 00:00:07]} 41.
Ne2 {[%clk 00:00:23]} {[%emt 00:00:13]} Re7 {[%clk 00:00:38]} {[%emt 00:00:13]}
42. Rd2 {[%clk 00:00:23]} {[%emt 00:00:04]} Be4+ {[%clk 00:00:41]} {[%emt
00:00:03]} 43. Kf2 {[%clk 00:00:27]} Kf7 {[%clk 00:00:45]} 44. Nd4 {[%clk
00:00:30]} {[%emt 00:00:02]} Rc7 {[%clk 00:00:48]} {[%emt 00:00:02]} 45. c3
{[%clk 00:00:25]} {[%emt 00:00:10]} c5 {[%clk 00:00:47]} {[%emt 00:00:06]} 46.
Nb5 {[%clk 00:00:26]} {[%emt 00:00:04]} Rc6 {[%clk 00:00:47]} {[%emt 00:00:04]}
47. c4 {[%clk 00:00:24]} {[%emt 00:00:08]} dxc4 {[%clk 00:00:36]} {[%emt
00:00:16]} 48. Nd6+ {[%clk 00:00:20]} {[%emt 00:00:09]} Rxd6 {[%clk 00:00:37]}
{[%emt 00:00:04]} 49. Rxd6 {[%clk 00:00:24]} cxb3 {[%clk 00:00:42]} 50. Rb6
{[%clk 00:00:22]} {[%emt 00:00:07]} c4 {[%clk 00:00:41]} {[%emt 00:00:06]} 51.
Ke2 {[%clk 00:00:25]} {[%emt 00:00:01]} g5 {[%clk 00:00:33]} {[%emt 00:00:13]}
52. Kd2 {[%clk 00:00:20]} {[%emt 00:00:10]} Bf3 {[%clk 00:00:35]} {[%emt
00:00:03]} 53. Kc3 {[%clk 00:00:20]} {[%emt 00:00:05]} Bxg4 {[%clk 00:00:39]}
54. Kxc4 {[%clk 00:00:08]} {[%emt 00:00:18]} Be6+ {[%clk 00:00:40]} {[%emt
00:00:04]} 55. Kd3 {[%clk 00:00:11]} {[%emt 00:00:02]} Bd7 {[%clk 00:00:33]}
{[%emt 00:00:12]} 56. Rxb3 {[%clk 00:00:11]} {[%emt 00:00:05]} Bxa4 {[%clk
00:00:37]} 57. Rb6 {[%clk 00:00:09]} {[%emt 00:00:07]} Bd7 {[%clk 00:00:37]}
{[%emt 00:00:04]} 58. Rb7 {[%clk 00:00:06]} {[%emt 00:00:08]} Ke6 {[%clk
00:00:41]} {[%emt 00:00:02]} 59. Ra7 {[%clk 00:00:11]} {[%emt 00:00:01]} a4
{[%clk 00:00:44]} 60. Ke4 {[%clk 00:00:14]} {[%emt 00:00:02]} Bc6+ {[%clk
00:00:48]} 61. Kd4 {[%clk 00:00:16]} {[%emt 00:00:04]} Kf5 {[%clk 00:00:37]}
{[%emt 00:00:16]} 62. Ra5+ {[%clk 00:00:16]} {[%emt 00:00:05]} Kg6 {[%clk
00:00:35]} {[%emt 00:00:07]} 63. Ra6 {[%clk 00:00:17]} {[%emt 00:00:04]} Bd7
{[%clk 00:00:38]} {[%emt 00:00:02]} 64. e4 {[%clk 00:00:21]} {[%emt 00:00:01]}
Kf7 {[%clk 00:00:40]} {[%emt 00:00:03]} 65. e5 {[%clk 00:00:23]} {[%emt
00:00:03]} fxe5+ {[%clk 00:00:43]} {[%emt 00:00:01]} 66. Kxe5 {[%clk 00:00:27]}
g4 {[%clk 00:00:36]} {[%emt 00:00:13]} 67. Kf4 {[%clk 00:00:30]} {[%emt
00:00:02]} Ke7 {[%clk 00:00:40]} {[%emt 00:00:01]} 68. Rxa4 {[%clk 00:00:33]}
{[%emt 00:00:02]} Bxa4 69. Kxg4 {[%clk 00:00:33]} 1/2-1/2